bitfinex-derivatives/quotes_BTCF0:USTF0_20250718
["timestamp","ask_amount","ask_price","bid_price","bid_amount"]
[1752862688569,0.6608127,117590.0,117580.0,0.2612971]
[1752862688773,1.1651327,117590.0,117580.0,0.2612971]
[1752862688973,0.5308127,117590.0,117580.0,0.2612971]
[1752862690272,0.3608,117590.0,117580.0,0.2612971]
[1752862690968,0.3608,117590.0,117580.0,0.8957371]
[1752862691171,0.44665649,117600.0,117590.0,0.2612826]
[1752862691367,0.61665459,117600.0,117590.0,0.2612826]
[1752862692372,0.37949478,117600.0,117590.0,0.8956826]
[1752862692573,0.37949478,117600.0,117590.0,1.40849847]
[1752862692972,0.37949478,117600.0,117590.0,1.41049847]
[1752862693172,0.01869478,117600.0,117590.0,1.41049847]
[1752862693372,0.68422671,117620.0,117610.0,0.2612537]
[1752862693373,0.42925761,117620.0,117610.0,0.2612537]
[1752862693568,0.5307693,117620.0,117610.0,0.8955337]
[1752862693966,0.5307693,117620.0,117610.0,0.2612537]
[1752862694174,1.05358517,117620.0,117610.0,0.2612537]
[1752862695265,1.05358517,117620.0,117610.0,0.05697]
[1752862695465,1.05358517,117620.0,117610.0,0.05104]
[1752862695666,1.68794517,117620.0,117610.0,0.05104]
[1752862696074,1.68794517,117620.0,117610.0,0.2210237]
[1752862696276,1.68794517,117620.0,117610.0,0.2299537]
[1752862696475,1.75502895,117620.0,117610.0,0.2299537]
[1752862697171,1.75502895,117620.0,117610.0,0.2632537]
[1752862698673,1.75502895,117620.0,117610.0,0.2622537]
[1752862699279,1.24221308,117620.0,117610.0,0.2622537]
[1752862699578,1.75502895,117620.0,117610.0,0.2622537]
[1752862699773,1.75502895,117620.0,117610.0,0.2632537]
[1752862699978,1.75502895,117620.0,117610.0,0.2622537]
[1752862700179,1.75602895,117620.0,117610.0,0.2622537]
[1752862701872,1.1746893,117620.0,117610.0,0.2622537]
[1752862702178,1.1736893,117620.0,117610.0,0.2622537]
[1752862704280,1.75320169,117620.0,117610.0,0.2279537]
[1752862704678,1.75320169,117620.0,117610.0,0.05004]
[1752862705078,1.67776117,117620.0,117610.0,0.05004]
[1752862705280,1.67776117,117620.0,117610.0,0.04904]
[1752862705878,1.67876117,117620.0,117610.0,0.2190237]
[1752862706179,1.67876117,117620.0,117610.0,0.04904]
[1752862706382,1.67876117,117620.0,117610.0,0.2190237]
[1752862706777,1.67876117,117620.0,117610.0,0.04904]
[1752862706973,1.7539572,117620.0,117610.0,0.04904]
[1752862708877,0.1699837,117610.0,117600.0,0.04904]
[1752862709083,0.1699982,117600.0,117590.0,0.05697]
[1752862709276,0.1700126,117590.0,117580.0,0.00793]
[1752862709476,1.15338398,117590.0,117580.0,0.2269971]
[1752862709884,0.2800126,117590.0,117580.0,0.2612971]
[1752862710084,0.6408126,117590.0,117580.0,0.2612971]
[1752862710479,0.2800126,117590.0,117580.0,0.2612971]
[1752862710785,0.6408126,117590.0,117580.0,0.2612971]
[1752862711485,0.1700126,117590.0,117580.0,0.2652971]
[1752862711983,0.1700126,117590.0,117580.0,0.2632971]
[1752862712583,0.9297155,117600.0,117590.0,0.2623326]
[1752862712782,1.2478929,117600.0,117590.0,0.2623326]
[1752862712983,0.8870929,117600.0,117590.0,0.2623326]
[1752862713388,0.212511,117600.0,117590.0,0.2623326]
[1752862713989,0.1700105,117600.0,117590.0,0.2623326]
[1752862714482,0.5308105,117600.0,117590.0,0.2633326]
[1752862714992,0.5308105,117600.0,117590.0,0.2643326]
[1752862716592,0.1700105,117600.0,117590.0,0.2643326]
[1752862718691,0.5308105,117600.0,117590.0,0.2643326]
[1752862718888,0.1700105,117600.0,117590.0,0.2643326]
[1752862719792,0.5308105,117600.0,117590.0,0.2643326]
[1752862721296,1.16338188,117600.0,117590.0,0.09432]
[1752862721796,1.16338188,117600.0,117590.0,0.07385]
[1752862721992,1.16338188,117600.0,117590.0,0.04972]
[1752862722393,0.6508105,117600.0,117590.0,0.04972]
[1752862722588,1.16338188,117600.0,117590.0,0.2187326]
[1752862722788,1.16338188,117600.0,117590.0,0.2177326]
[1752862723195,1.16338188,117600.0,117590.0,0.04772]
[1752862723397,1.16338188,117600.0,117590.0,0.2177326]
[1752862723595,1.16338188,117600.0,117590.0,0.2260426]
[1752862723796,1.16338188,117600.0,117590.0,0.2623326]
[1752862724797,1.16338188,117600.0,117590.0,0.2459326]
[1752862726603,1.16338188,117600.0,117590.0,0.2623326]
[1752862726794,1.2812905,117600.0,117590.0,0.2623326]
[1752862727102,0.6508105,117600.0,117590.0,0.2623326]
[1752862727303,1.1612905,117600.0,117590.0,0.2623326]
[1752862727601,0.5308105,117600.0,117590.0,0.2623326]
[1752862728696,0.1700105,117600.0,117590.0,0.2623326]
[1752862729001,0.1700105,117600.0,117590.0,1.33208859]
[1752862729197,0.67687469,117610.0,117600.0,0.1699982]
[1752862729400,0.59187769,117610.0,117600.0,0.2623182]
[1752862729696,0.37938319,117610.0,117600.0,0.69963419]
[1752862730404,0.01858319,117610.0,117600.0,1.06043419]
[1752862731103,0.01858319,117610.0,117600.0,1.13544242]
[1752862731402,0.01858319,117610.0,117600.0,1.13644242]
[1752862732404,0.01858319,117610.0,117600.0,1.13744242]
[1752862732604,0.01858319,117610.0,117600.0,1.13944242]
[1752862734405,0.01858319,117610.0,117600.0,1.77052242]
[1752862736104,0.01858319,117610.0,117600.0,1.84642775]
[1752862736305,0.01858319,117610.0,117600.0,1.77052242]
[1752862737307,0.5307552,117630.0,117620.0,0.1898592]
[1752862737508,0.5307552,117630.0,117620.0,0.8930092]
[1752862738100,0.3608,117630.0,117620.0,0.8930092]
[1752862738998,0.5307547,117630.0,117620.0,0.8930092]
[1752862740306,0.5307547,117630.0,117620.0,0.8950092]
[1752862740508,0.5307547,117630.0,117620.0,0.8970092]
[1752862741411,0.5907547,117630.0,117620.0,0.09632]
[1752862741708,1.73343892,117630.0,117620.0,0.004]
[1752862742300,2.15347093,117630.0,117620.0,0.004]
[1752862742508,0.1699981,117600.0,117590.0,0.30246394]
[1752862742707,1.17312232,117600.0,117590.0,0.30644394]
[1752862742903,1.17312232,117600.0,117590.0,0.2301213]
[1752862743712,0.81232232,117600.0,117590.0,0.2301213]
[1752862743904,0.81232232,117600.0,117590.0,0.06011]
[1752862744111,1.17312232,117600.0,117590.0,0.06011]
[1752862744812,1.17312232,117600.0,117590.0,0.2311225]
[1752862745110,1.17312232,117600.0,117590.0,0.06111]
[1752862745305,1.17312232,117600.0,117590.0,0.05713]
[1752862746015,0.6607981,117600.0,117590.0,0.05713]
[1752862746217,1.17312232,117600.0,117590.0,0.05713]
[1752862747109,1.17312232,117600.0,117590.0,0.2271426]
[1752862748809,0.6607981,117600.0,117590.0,0.2630026]
[1752862749015,0.5307981,117600.0,117590.0,0.2630026]
[1752862750209,0.1699981,117600.0,117590.0,0.2630026]
[1752862751914,0.96819244,117600.0,117590.0,0.2630026]
[1752862754913,0.60739244,117600.0,117590.0,0.2630026]
[1752862755115,0.96819244,117600.0,117590.0,0.2630026]
[1752862755418,0.1699981,117600.0,117590.0,0.2630026]
[1752862756120,0.1699981,117600.0,117590.0,0.09299]
[1752862756521,0.60739244,117600.0,117590.0,0.2630015]
[1752862756720,0.60739244,117600.0,117590.0,0.09299]
[1752862757022,0.60739244,117600.0,117590.0,0.2630015]
[1752862757617,0.1699981,117600.0,117590.0,0.2630015]
[1752862757818,0.60739244,117600.0,117590.0,0.2630015]
[1752862759020,0.1699981,117600.0,117590.0,0.2630015]
[1752862760419,0.60739244,117600.0,117590.0,0.2630015]
[1752862760620,0.60739244,117600.0,117590.0,0.09299]
[1752862760821,0.96819244,117600.0,117590.0,0.09299]
[1752862765229,0.96819244,117600.0,117590.0,0.2630015]
[1752862765629,0.96819244,117600.0,117590.0,0.09299]
[1752862766628,0.5307981,117600.0,117590.0,0.09299]
[1752862766828,0.96819244,117600.0,117590.0,0.09299]
[1752862767230,0.99819244,117600.0,117590.0,0.09299]
[1752862768832,0.5607981,117600.0,117590.0,0.09299]
[1752862769129,0.99819244,117600.0,117590.0,0.09299]
[1752862769328,0.96819244,117600.0,117590.0,0.2630015]
[1752862770833,0.96819244,117600.0,117590.0,0.09299]
[1752862771132,1.08819244,117600.0,117590.0,0.09299]
[1752862771333,1.08819244,117600.0,117590.0,0.2630015]
[1752862772923,0.6507981,117600.0,117590.0,0.2630015]
[1752862773127,1.08819244,117600.0,117590.0,0.2630015]
[1752862774936,1.08819244,117600.0,117590.0,0.09299]
[1752862777038,1.71347244,117600.0,117590.0,0.09299]
[1752862782136,1.59347244,117600.0,117590.0,0.2630014]
[1752862782641,1.1560781,117600.0,117590.0,0.2630014]
[1752862782840,1.59347244,117600.0,117590.0,0.2630014]
[1752862783942,1.23267244,117600.0,117590.0,0.2630014]
[1752862784343,0.7952781,117600.0,117590.0,0.2630014]
[1752862784643,1.59347244,117600.0,117590.0,0.2630014]
[1752862784938,0.96819244,117600.0,117590.0,0.09299]
[1752862785136,1.71115244,117600.0,117590.0,0.09299]
[1752862785537,1.71115244,117600.0,117590.0,0.07723]
[1752862787543,1.73021352,117600.0,117590.0,0.07723]
[1752862787738,1.73021352,117600.0,117590.0,0.05713]
[1752862789539,1.73021352,117600.0,117590.0,0.07369]
[1752862791041,1.29281918,117600.0,117590.0,0.07369]
[1752862791243,1.73021352,117600.0,117590.0,0.07369]
[1752862791646,1.29281918,117600.0,117590.0,0.07369]
[1752862791846,1.73021352,117600.0,117590.0,0.07369]
[1752862793248,1.73021352,117600.0,117590.0,0.2641114]
[1752862793851,1.61021352,117600.0,117590.0,0.2641114]
[1752862797659,1.61021352,117600.0,117590.0,0.0941]
[1752862797860,1.73021352,117600.0,117590.0,0.0941]
[1752862800563,1.73021352,117600.0,117590.0,0.2641107]
[1752862800857,0.96819244,117600.0,117590.0,0.2641107]
[1752862801062,0.1699963,117600.0,117590.0,0.82900654]
[1752862801365,0.2974914,117610.0,117600.0,0.2598062]
[1752862801560,0.6582914,117610.0,117600.0,0.8804062]
[1752862801863,1.09568574,117610.0,117600.0,0.2598062]
[1752862802461,1.09668574,117610.0,117600.0,0.08981]
[1752862802763,1.09668574,117610.0,117600.0,0.2598063]
[1752862803968,1.09668574,117610.0,117600.0,0.08981]
[1752862804166,1.09668574,117610.0,117600.0,0.2598063]
[1752862805165,0.6602914,117610.0,117600.0,0.2598063]
[1752862805367,1.09768574,117610.0,117600.0,0.2598063]
[1752862805970,1.09668574,117610.0,117600.0,0.2598063]
[1752862806169,1.09568574,117610.0,117600.0,0.2598063]
[1752862806774,0.6582914,117610.0,117600.0,0.2598063]
[1752862806966,0.6157924,117610.0,117600.0,0.69720064]
[1752862807670,0.5732934,117610.0,117600.0,0.69720064]
[1752862808773,0.5732934,117610.0,117600.0,0.69820064]
[1752862809271,0.5732934,117610.0,117600.0,0.69920064]
[1752862809674,0.2549667,117620.0,117610.0,0.2597922]
[1752862809876,0.2549667,117620.0,117610.0,1.31770654]
[1752862810469,1.05316104,117620.0,117610.0,0.71033]
[1752862810670,1.18316104,117620.0,117610.0,0.05347]
[1752862812276,1.18416104,117620.0,117610.0,0.05347]
[1752862812476,1.18516104,117620.0,117610.0,0.05347]
[1752862812677,0.7477667,117620.0,117610.0,0.05347]
[1752862812879,1.18516104,117620.0,117610.0,0.05347]
[1752862814382,0.7477667,117620.0,117610.0,0.2400422]
[1752862814576,0.6177667,117620.0,117610.0,0.2597922]
[1752862814777,0.6177667,117620.0,117610.0,0.69718654]
[1752862814778,0.1719677,117620.0,117610.0,0.69718654]
[1752862815083,0.1719677,117620.0,117610.0,0.70434277]
[1752862815377,0.002,117620.0,117610.0,1.06514277]
[1752862815775,0.2549445,117630.0,117620.0,0.2063077]
[1752862815974,0.2549445,117630.0,117620.0,1.31761204]
[1752862816379,0.2549445,117630.0,117620.0,0.8802177]
[1752862817179,0.6157243,117640.0,117630.0,0.1699532]
[1752862817377,0.6157243,117640.0,117630.0,0.69715754]
[1752862817886,0.6157243,117640.0,117630.0,0.76397385]
[1752862818188,0.2124373,117640.0,117630.0,0.76397385]
[1752862818684,0.2134373,117640.0,117630.0,0.76397385]
[1752862818884,0.001,117640.0,117630.0,0.76397385]
[1752862819085,0.002,117640.0,117630.0,0.76397385]
[1752862819585,0.002,117640.0,117630.0,1.12477385]
[1752862819982,0.002,117640.0,117630.0,1.29478985]
[1752862820792,0.001,117640.0,117630.0,1.29478985]
[1752862821092,0.001,117640.0,117630.0,1.29578985]
[1752862821392,0.001,117640.0,117630.0,1.29778985]
[1752862821691,0.2548784,117660.0,117650.0,0.2597341]
[1752862821985,0.2548784,117660.0,117650.0,0.8800141]
[1752862822293,0.6156595,117670.0,117660.0,0.2597199]
[1752862823084,1.05305384,117670.0,117660.0,0.2597199]
[1752862823492,1.05305384,117670.0,117660.0,0.26684807]
[1752862823990,0.6156595,117670.0,117660.0,0.26684807]
[1752862824492,0.6176595,117670.0,117660.0,0.26684807]
[1752862824688,1.05505384,117670.0,117660.0,0.09693817]
[1752862824889,0.6176595,117670.0,117660.0,0.09693817]
[1752862825084,1.05505384,117670.0,117660.0,0.09693817]
[1752862825493,0.6176595,117670.0,117660.0,0.26684807]
[1752862825692,0.6176595,117670.0,117660.0,0.09693817]
[1752862825893,1.05505384,117670.0,117660.0,0.09693817]
[1752862826295,0.6176595,117670.0,117660.0,0.09693817]
[1752862826490,1.05505384,117670.0,117660.0,0.09693817]
[1752862826995,0.6176595,117670.0,117660.0,0.09693817]
[1752862827195,1.05505384,117670.0,117660.0,0.09693817]
[1752862828595,1.05505384,117670.0,117660.0,0.26684807]
[1752862828893,1.05505384,117670.0,117660.0,0.09693817]
[1752862829099,0.6176595,117670.0,117660.0,0.09693817]
[1752862829299,0.6176595,117670.0,117660.0,0.26684807]
[1752862829700,1.05505384,117670.0,117660.0,0.26684807]
[1752862830206,0.6176595,117670.0,117660.0,0.26684807]
[1752862830406,1.05505384,117670.0,117660.0,0.26684807]
[1752862831102,1.05505384,117670.0,117660.0,0.09693817]
[1752862831307,0.6176595,117670.0,117660.0,0.09693817]
[1752862831507,1.05505384,117670.0,117660.0,0.09693817]
[1752862832205,1.05505384,117670.0,117660.0,0.26684787]
[1752862832508,1.05505384,117670.0,117660.0,0.09693817]
[1752862832709,0.6176595,117670.0,117660.0,0.09693817]
[1752862832909,1.05505384,117670.0,117660.0,0.09693817]
[1752862833406,1.41585384,117670.0,117660.0,0.09693817]
[1752862833607,1.52585384,117670.0,117660.0,0.00712817]
[1752862833807,0.1699094,117660.0,117650.0,0.05559]
[1752862834006,1.06810374,117660.0,117650.0,0.70582]
[1752862834307,1.06810374,117660.0,117650.0,0.70972]
[1752862834805,0.89819434,117660.0,117640.0,0.63491593]
[1752862835006,0.96811804,117650.0,117640.0,0.06315593]
[1752862835307,1.08811804,117650.0,117640.0,0.06315593]
[1752862835611,1.08811804,117650.0,117640.0,0.04816]
[1752862836511,1.08811804,117650.0,117640.0,0.05559]
[1752862837110,1.08811804,117650.0,117640.0,0.04816]
[1752862837314,1.08911804,117650.0,117640.0,0.04816]
[1752862838312,1.09011804,117650.0,117640.0,0.04816]
[1752862839410,0.1699373,117640.0,117630.0,0.06302101]
[1752862839618,0.96813164,117640.0,117630.0,0.06302101]
[1752862840113,1.00813164,117640.0,117630.0,0.06302101]
[1752862840814,1.00813164,117640.0,117630.0,0.05559]
[1752862841013,0.1699511,117630.0,117620.0,0.05559]
[1752862841310,0.96814544,117630.0,117620.0,0.05559]
[1752862842417,1.08814544,117630.0,117620.0,0.05559]
[1752862842716,1.08814544,117630.0,117620.0,0.05659]
[1752862842917,1.08814544,117630.0,117620.0,0.2607253]
[1752862843116,0.59960713,117630.0,117620.0,0.2607253]
[1752862843910,0.59960713,117630.0,117620.0,0.2617253]
[1752862844312,0.5307511,117630.0,117620.0,0.2617253]
[1752862844712,0.1699511,117630.0,117620.0,0.2617253]
[1752862844919,0.5307511,117630.0,117620.0,0.2617253]
[1752862845118,0.1699511,117630.0,117620.0,0.2617253]
[1752862845419,0.1699511,117630.0,117620.0,0.26929685]
[1752862846019,0.60734544,117630.0,117620.0,0.09933155]
[1752862846221,0.96814544,117630.0,117620.0,0.09933155]
[1752862846919,0.96814544,117630.0,117620.0,0.26929695]
[1752862847621,0.5307511,117630.0,117620.0,0.26929695]
[1752862847815,0.60734544,117630.0,117620.0,0.09933155]
[1752862848318,0.1699511,117630.0,117620.0,0.26929715]
[1752862848519,0.1699511,117630.0,117620.0,0.09933155]
[1752862849122,0.1699511,117630.0,117620.0,0.26929715]
[1752862849920,0.60734544,117630.0,117620.0,0.26929715]
[1752862850123,0.60734544,117630.0,117620.0,0.09933155]
[1752862850524,0.60734544,117630.0,117620.0,0.26929715]
[1752862850721,0.60734544,117630.0,117620.0,0.09933155]
[1752862851022,0.96814544,117630.0,117620.0,0.09933155]
[1752862851222,0.60734544,117630.0,117620.0,0.26929715]
[1752862851416,0.5307511,117630.0,117620.0,0.26929715]
[1752862851613,0.1699511,117630.0,117620.0,0.26929715]
[1752862851918,0.60734544,117630.0,117620.0,0.26929715]
[1752862852217,0.1699511,117630.0,117620.0,0.26929715]
[1752862855025,0.60734544,117630.0,117620.0,0.26929715]
[1752862855322,0.5307511,117630.0,117620.0,0.26929715]
[1752862855515,0.96814544,117630.0,117620.0,0.26929715]
[1752862856628,0.60734544,117630.0,117620.0,0.26929715]
[1752862857424,0.96814544,117630.0,117620.0,0.26929715]
[1752862857624,0.60734544,117630.0,117620.0,0.26929715]
[1752862858524,0.96814544,117630.0,117620.0,0.09933155]
[1752862859125,1.09814544,117630.0,117620.0,0.05759]
[1752862859425,1.09822635,117630.0,117600.0,0.13192951]
[1752862859626,0.89158,117610.0,117600.0,0.23076697]
[1752862859821,1.44897434,117610.0,117600.0,0.18260697]
[1752862860026,1.44897434,117610.0,117600.0,0.07633951]
[1752862860729,0.1699945,117600.0,117590.0,0.13192951]
[1752862860930,1.08818884,117600.0,117590.0,0.13192951]
[1752862861927,1.08818884,117600.0,117590.0,0.30583851]
[1752862862126,0.6507945,117600.0,117590.0,0.32099851]
[1752862862322,1.08818884,117600.0,117590.0,0.244659]
[1752862862523,1.08818884,117600.0,117590.0,0.09101]
[1752862862729,1.08818884,117600.0,117590.0,0.261019]
[1752862863132,1.08918884,117600.0,117590.0,0.261019]
[1752862863926,0.96918884,117600.0,117590.0,0.261019]
[1752862864231,0.60838884,117600.0,117590.0,0.261019]
[1752862864833,0.1709945,117600.0,117590.0,0.261019]
[1752862865934,0.60838884,117600.0,117590.0,0.261019]
[1752862866529,0.1709945,117600.0,117590.0,0.261019]
[1752862866735,0.60838884,117600.0,117590.0,0.261019]
[1752862866930,0.1709945,117600.0,117590.0,0.261019]
[1752862868129,0.1699945,117600.0,117590.0,0.263019]
[1752862868326,0.1699945,117600.0,117590.0,0.70041334]
[1752862868826,0.1699945,117600.0,117590.0,0.263019]
[1752862871438,0.60738884,117600.0,117590.0,0.263019]
[1752862873537,0.96818884,117600.0,117590.0,0.07665]
[1752862873837,1.08818884,117600.0,117590.0,0.05759]
[1752862874335,1.08818884,117600.0,117590.0,0.227599]
[1752862874536,0.5307945,117600.0,117590.0,0.264599]
[1752862874837,0.1699945,117600.0,117590.0,0.263599]
[1752862875037,0.1699945,117600.0,117590.0,0.262599]
[1752862875336,0.5307945,117600.0,117590.0,0.262599]
[1752862876236,0.96818884,117600.0,117590.0,0.262599]
[1752862877138,0.5307945,117600.0,117590.0,0.262599]
[1752862877341,0.96818884,117600.0,117590.0,0.262599]
[1752862879643,0.5307945,117600.0,117590.0,0.262599]
[1752862879842,0.96818884,117600.0,117590.0,0.262599]
[1752862880144,0.5307945,117600.0,117590.0,0.262599]
[1752862880339,0.96818884,117600.0,117590.0,0.262599]
[1752862880639,0.96818884,117600.0,117590.0,0.09259]
[1752862880841,0.5307945,117600.0,117590.0,0.09259]
[1752862881340,1.09818884,117600.0,117590.0,0.04816]
[1752862881634,0.1700091,117590.0,117580.0,0.23117232]
[1752862881839,0.96820344,117590.0,117580.0,0.23117232]
[1752862882231,0.96820344,117590.0,117580.0,0.06114882]
[1752862882734,0.96820344,117590.0,117580.0,0.23217232]
[1752862882930,0.96820344,117590.0,117580.0,0.24983232]
[1752862883235,0.96820344,117590.0,117580.0,0.07980882]
[1752862883741,0.96820344,117590.0,117580.0,0.24983232]
[1752862884241,0.5308091,117590.0,117580.0,0.27017232]
[1752862884440,0.96820344,117590.0,117580.0,0.27017232]
[1752862885937,0.96820344,117590.0,117580.0,0.10014882]
[1752862886137,0.96820344,117590.0,117580.0,0.27017232]
[1752862886644,0.5308091,117590.0,117580.0,0.27017232]
[1752862886940,0.96820344,117590.0,117580.0,0.27017232]
[1752862891045,0.5308091,117590.0,117580.0,0.27017232]
[1752862891343,0.96820344,117590.0,117580.0,0.27017232]
[1752862891745,0.5308091,117590.0,117580.0,0.27017232]
[1752862891947,0.96820344,117590.0,117580.0,0.27017232]
[1752862893145,0.5308091,117590.0,117580.0,0.70756666]
[1752862893949,0.5308091,117590.0,117580.0,0.27017232]
[1752862903952,0.96820344,117590.0,117580.0,0.27017232]
[1752862904254,0.5308091,117590.0,117580.0,0.27017232]
[1752862905848,0.96820344,117590.0,117580.0,0.27017232]
[1752862906550,0.5308091,117590.0,117580.0,0.27017232]
[1752862906854,0.96820344,117590.0,117580.0,0.27017232]
[1752862909157,0.5308091,117590.0,117580.0,0.27017232]
[1752862910860,0.96820344,117590.0,117580.0,0.27017232]
[1752862913360,0.96820344,117590.0,117580.0,0.34651183]
[1752862913859,0.96820344,117590.0,117580.0,0.27017232]
[1752862914156,0.96820344,117590.0,117580.0,0.25381242]
[1752862914351,0.96820344,117590.0,117580.0,0.13213951]
[1752862914550,1.08820344,117590.0,117580.0,0.002]
[1752862915357,1.08820344,117590.0,117580.0,0.2187436]
[1752862915956,1.08820344,117590.0,117580.0,0.2265236]
[1752862916658,1.08820344,117590.0,117580.0,0.0565]
[1752862917657,0.6508091,117590.0,117580.0,0.2265236]
[1752862918161,1.08820344,117590.0,117580.0,0.2265236]
[1752862918457,1.08820344,117590.0,117580.0,0.2429036]
[1752862919063,0.96820344,117590.0,117580.0,0.2429036]
[1752862919259,0.5308091,117590.0,117580.0,0.2585936]
[1752862919563,1.58588344,117590.0,117580.0,0.2625036]
[1752862920367,1.58588344,117590.0,117580.0,0.2468136]
[1752862920866,1.69588344,117590.0,117580.0,0.2429036]
[1752862921067,1.69588344,117590.0,117580.0,0.0565]
[1752862921366,1.69588344,117590.0,117580.0,0.2265236]
[1752862922066,1.2584891,117590.0,117580.0,0.2426336]
[1752862922266,1.69588344,117590.0,117580.0,0.2620536]
[1752862924972,1.69588344,117590.0,117580.0,0.0565]
[1752862925269,1.69588344,117590.0,117580.0,0.04872]
[1752862928561,1.69588344,117590.0,117580.0,0.05596]
[1752862931573,1.69588344,117590.0,117580.0,0.2259835]
[1752862932167,1.69588344,117590.0,117580.0,0.07207]
[1752862932373,1.69588344,117590.0,117580.0,0.05596]
[1752862932575,1.69588344,117590.0,117580.0,0.04872]
[1752862933173,1.69588344,117590.0,117580.0,0.05596]
[1752862933674,1.69588344,117590.0,117580.0,0.05396]
[1752862934474,0.6428091,117590.0,117580.0,0.2595136]
[1752862934672,1.1499691,117590.0,117580.0,0.2595136]
[1752862935271,1.1509691,117590.0,117580.0,0.2595136]
[1752862935478,1.58836344,117590.0,117580.0,0.2595136]
[1752862935777,1.58636344,117590.0,117580.0,0.2595136]
[1752862935977,1.58536344,117590.0,117580.0,0.2595136]
[1752862938370,1.58536344,117590.0,117580.0,0.08949]
[1752862938575,1.58536344,117590.0,117580.0,0.05396]
[1752862939076,1.58536344,117590.0,117580.0,0.2239836]
[1752862939779,1.58536344,117590.0,117580.0,0.2595136]
[1752862940880,1.1479691,117590.0,117580.0,0.2595136]
[1752862941080,1.58536344,117590.0,117580.0,0.2595136]
[1752862943687,1.1479691,117590.0,117580.0,0.2595136]
[1752862943890,1.58536344,117590.0,117580.0,0.2595136]
[1752862944890,1.58536344,117590.0,117580.0,0.2605136]
[1752862945085,1.58536344,117590.0,117580.0,0.2615136]
[1752862947887,0.5308041,117600.0,117590.0,0.1700094]
[1752862947888,0.615807,117600.0,117590.0,0.1700094]
[1752862948091,0.573306,117600.0,117590.0,1.31431374]
[1752862948592,0.1699949,117600.0,117590.0,1.31431374]
[1752862949293,0.1699949,117600.0,117590.0,1.39065325]
[1752862949791,0.1699949,117600.0,117590.0,1.39265325]
[1752862950189,0.1699949,117600.0,117590.0,1.31631374]
[1752862951192,0.1699949,117600.0,117590.0,1.31831374]
[1752862951392,0.1699949,117600.0,117590.0,0.8809194]
[1752862953093,0.1699949,117600.0,117590.0,1.31831374]
[1752862954493,0.1699949,117600.0,117590.0,0.8809194]
[1752862956592,0.60738924,117600.0,117590.0,0.8805194]
[1752862958095,0.60738924,117600.0,117590.0,0.8765194]
[1752862958291,0.60738924,117600.0,117590.0,0.8805194]
[1752862958790,0.60738924,117600.0,117590.0,0.8785194]
[1752862958986,0.60738924,117600.0,117590.0,0.2643194]
[1752862959191,0.60738924,117600.0,117590.0,0.8783609]
[1752862959392,0.60738924,117600.0,117590.0,0.8803609]
[1752862960294,0.1699949,117600.0,117590.0,0.8803609]
[1752862960494,0.60738924,117600.0,117590.0,0.8783609]
[1752862960895,0.60738924,117600.0,117590.0,0.8763609]
[1752862961196,0.96818924,117600.0,117590.0,0.8763609]
[1752862961798,0.96818924,117600.0,117590.0,0.09031]
[1752862961993,0.96818924,117600.0,117590.0,0.8762009]
[1752862963899,0.96818924,117600.0,117590.0,0.2603209]
[1752862964298,0.96818924,117600.0,117590.0,0.8761209]
[1752862964799,0.96818924,117600.0,117590.0,0.70611]
[1752862964999,1.07818924,117600.0,117590.0,0.70611]
[1752862965498,1.07818924,117600.0,117590.0,0.8761201]
[1752862965799,1.07818924,117600.0,117590.0,0.2603201]
[1752862965993,1.07818924,117600.0,117590.0,0.8760001]
[1752862966794,1.36488143,117600.0,117570.0,0.44493987]
[1752862966991,0.1700679,117550.0,117540.0,0.01358586]
[1752862967193,0.1700824,117540.0,117530.0,0.05497]
[1752862967399,0.1977613,117520.0,117510.0,0.03372]
[1752862967596,1.02125564,117520.0,117510.0,0.03372]
[1752862967799,1.70389893,117520.0,117510.0,0.04155653]
[1752862968099,2.14139667,117520.0,117510.0,0.03372]
[1752862969295,2.14139667,117520.0,117510.0,0.06553]
[1752862969500,2.14139667,117520.0,117510.0,0.08869]
[1752862969699,2.61209327,117520.0,117510.0,0.04767]
[1752862969893,2.61209327,117520.0,117510.0,0.02316]
[1752862970293,2.61216817,117520.0,117510.0,0.02316]
[1752862970496,2.61219521,117520.0,117510.0,0.04767]
[1752862970696,2.61209327,117520.0,117510.0,0.04767]
[1752862970899,2.61209327,117520.0,117510.0,0.05497]
[1752862971396,2.61209327,117520.0,117510.0,0.04767]
[1752862972101,0.1927656,117510.0,117500.0,0.05497]
[1752862972394,1.15134647,117510.0,117500.0,0.05497]
[1752862972595,1.15126994,117510.0,117500.0,0.02316]
[1752862973203,1.15126994,117510.0,117500.0,0.02416]
[1752862973905,1.15126994,117510.0,117500.0,0.02516]
[1752862974500,1.76488994,117510.0,117500.0,0.2608301]
[1752862974804,1.76698994,117510.0,117500.0,0.2608301]
[1752862975100,1.76698994,117510.0,117500.0,0.02516]
[1752862975306,1.76690994,117510.0,117500.0,0.02516]
[1752862976302,1.15126994,117510.0,117500.0,0.1953001]
[1752862976503,1.76682994,117510.0,117500.0,0.1953001]
[1752862976998,1.76690186,117510.0,117500.0,0.1953001]
[1752862977307,1.76682994,117510.0,117500.0,0.1953001]
[1752862977506,1.15126994,117510.0,117500.0,0.1953001]
[1752862977709,1.76686994,117510.0,117500.0,0.04967]
[1752862977905,0.2224146,117490.0,117480.0,0.03121424]
[1752862978109,0.1701691,117480.0,117470.0,0.02451]
[1752862978302,1.57307105,117480.0,117470.0,0.04767]
[1752862978506,1.57808105,117480.0,117470.0,0.04767]
[1752862978804,0.1701835,117470.0,117460.0,0.0073]
[1752862979000,1.75625291,117470.0,117460.0,0.05497]
[1752862979706,1.74914291,117470.0,117460.0,0.258888]
[1752862980010,1.72663291,117470.0,117460.0,0.258888]
[1752862980214,1.74914291,117470.0,117460.0,0.258888]
[1752862980609,1.75415291,117470.0,117460.0,0.258888]
[1752862981210,1.75415291,117470.0,117460.0,0.266888]
[1752862981800,1.75625291,117470.0,117460.0,0.266888]
[1752862982001,1.31885857,117470.0,117460.0,0.266888]
[1752862982201,1.75625291,117470.0,117460.0,0.266888]
[1752862983309,1.01362291,117470.0,117460.0,0.266888]
[1752862983504,1.60659291,117470.0,117460.0,0.266888]
[1752862983702,0.19291857,117470.0,117460.0,0.266888]
[1752862983903,9.507e-05,117470.0,117460.0,1.68064234]
[1752862984308,1.09595764,117500.0,117490.0,0.2594045]
[1752862984609,1.30813944,117500.0,117490.0,0.2594045]
[1752862984809,0.71593944,117500.0,117490.0,0.2594045]
[1752862985009,0.67340234,117500.0,117490.0,0.2594045]
[1752862985307,0.00397,117510.0,117500.0,0.2593901]
[1752862985512,0.67782063,117520.0,117510.0,0.1701256]
[1752862985706,0.74037193,117520.0,117510.0,0.8748556]
[1752862985906,0.47649832,117530.0,117520.0,0.1893312]
[1752862986107,0.20920068,117530.0,117520.0,0.2593612]
[1752862986308,0.64659502,117530.0,117520.0,0.2593612]
[1752862986713,0.64659502,117530.0,117520.0,0.88270599]
[1752862987015,0.72242713,117530.0,117520.0,0.88270599]